fUST/lending_fUST_20260415
["ID","MTS","AMOUNT","RATE_DAILY","PERIOD"]
[420542543,1776263441783,-800.0,9.637e-05,2]
[420542544,1776263441793,-160.0,9.644e-05,2]
[420542545,1776263441803,-151.0,9.668e-05,2]
[420542546,1776263441813,-168.3888056,9.668e-05,2]
[420542547,1776263441823,-461.67526834,9.668e-05,2]
[420542548,1776263441832,-557.5788265,9.668e-05,2]
[420542549,1776263441843,-2230.315306,9.668e-05,2]
[420542550,1776263441853,-166.0,9.669e-05,2]
[420542551,1776263441863,-166.0,9.669e-05,2]
[420542552,1776263441875,-155.0,9.669e-05,2]
[420542553,1776263441892,-166.0,9.669e-05,2]
[420542554,1776263441907,-648.0,9.669e-05,2]
[420542555,1776263441920,-272.61022012,9.669e-05,2]
[420542556,1776263441935,-648.0,9.669e-05,2]
[420542557,1776263441953,-161.86712527,9.669e-05,2]
[420542558,1776263441969,-773.2413689,9.67e-05,2]
[420542559,1776263441982,-3000.0,9.7e-05,30]
[420542560,1776263441998,-3000.0,9.71e-05,30]
[420542561,1776263442013,-3000.0,9.72e-05,30]
[420542562,1776263442026,-801.85129955,9.725e-05,2]
[420542563,1776263442040,-3000.0,9.73e-05,30]
[420542564,1776263442051,-3000.0,9.74e-05,30]
[420542565,1776263442066,-3000.0,9.75e-05,30]
[420542566,1776263442079,-3000.0,9.76e-05,30]
[420542567,1776263442094,-1500.0,9.768e-05,2]
[420542568,1776263442107,-1500.0,9.768e-05,2]
[420542569,1776263442122,-1500.0,9.768e-05,2]
[420542570,1776263442137,-1500.0,9.768e-05,2]
[420542571,1776263442149,-1500.0,9.768e-05,2]
[420542572,1776263442160,-1500.0,9.768e-05,2]
[420542573,1776263442171,-3000.0,9.77e-05,30]
[420542574,1776263442187,-3000.0,9.78e-05,30]
[420542575,1776263442198,-831.51979763,9.78e-05,2]
[420542576,1776263442213,-823.0,9.782e-05,2]
[420542577,1776263442229,-1938.10249498,9.783e-05,2]
[420542578,1776263442242,-3000.0,9.79e-05,30]
[420542579,1776263442255,-500.0,9.794e-05,2]
[420542580,1776263442267,-4382.00299883,9.798e-05,2]
[420542581,1776263442278,-3000.0,9.8e-05,30]
[420542582,1776263442292,-3000.0,9.81e-05,30]
[420542583,1776263442304,-3000.0,9.82e-05,30]
[420542584,1776263442320,-5054.567054,9.83e-05,30]
[420542585,1776263442336,-862.28603014,9.835e-05,2]
[420542586,1776263442350,-894.19061326,9.89e-05,2]
[420542587,1776263442365,-160.0,9.897e-05,3]
[420542588,1776263442379,-291.5374208,9.904e-05,2]
[420542589,1776263442392,-620.00020484,9.923e-05,2]
[420542590,1776263442405,-927.27566595,9.945e-05,2]
[420542591,1776263442419,-2507.04658366,9.961e-05,2]
[420542592,1776263442432,-325.2414606,9.981e-05,2]
[420542593,1776263442445,-371.22826399,0.0001,2]
[420542594,1776263442458,-36000.0,0.0001,2]
[420542595,1776263442471,-24000.0,0.0001,2]
[420542596,1776263442483,-354.30561241,0.0001,2]
[420542597,1776263442497,-168.64059767,0.0001,2]
[420542598,1776263442510,-313.57529085,0.0001,2]
[420542599,1776263442522,-572.40585756,0.0001,2]
[420542600,1776263442535,-662.53951612,0.0001,2]
[420542601,1776263442548,-300.0,0.0001,2]
[420542602,1776263442560,-286.74,0.0001,2]
[420542603,1776263442572,-2000.0,0.0001,2]
[420542604,1776263442585,-709.12769178,0.0001,2]
[420542605,1776263442598,-168.2617702,0.0001,2]
[420542606,1776263442611,-587.31281038,0.0001,2]
[420542607,1776263442623,-2017.30582732,0.0001,2]
[420542608,1776263442636,-648.69912647,0.0001,2]
[420542609,1776263442648,-674.88021625,0.0001,2]
[420542610,1776263442661,-1286.29479027,0.0001,2]
[420542611,1776263442673,-3598.0,0.0001,2]
[420542612,1776263442685,-1436.77,0.0001,2]
[420542613,1776263442697,-961.58486559,0.0001,2]
[420542614,1776263442710,-1635.78,0.00010003,2]
[420542615,1776263442721,-1096.34,0.00010019,2]
[420542616,1776263442733,-1155.04,0.0001002,2]
[420542617,1776263442745,-4360.73061371,0.00010028,2]
[420542618,1776263442758,-1274.28,0.00010046,2]
[420542619,1776263442770,-214.97,0.00010047,2]
[420542620,1776263442782,-1500.0,0.00010068,2]
[420542621,1776263442795,-1008.13493713,0.00010068,2]
[420542622,1776263442807,-631.20257707,0.00010068,2]
[420542624,1776263442820,-1500.0,0.00010068,2]
[420542626,1776263442833,-1500.0,0.00010068,2]
[420542627,1776263442846,-257.71763555,0.00010132,2]
[420542628,1776263442858,-1000.0,0.00010175,2]
[420542629,1776263442872,-151.0,0.00010216,2]
[420542630,1776263442884,-174.61919141,0.00010216,2]
[420542631,1776263442896,-478.75725327,0.00010216,2]
[420542632,1776263442910,-578.20924308,0.00010216,2]
[420542633,1776263442923,-2312.83697232,0.00010216,2]
[420542635,1776263442935,-7744.65756995,0.00010272,2]
[420542638,1776263442948,-572.40585756,0.00010309,2]
[420542640,1776263442961,-2000.0,0.00010316,2]
[420542642,1776263442974,-2000.0,0.00010316,2]
[420542645,1776263442987,-2000.0,0.00010316,2]
[420542646,1776263443000,-1504.8158894,0.00010316,2]
[420542647,1776263443013,-2000.0,0.00010316,2]
[420542648,1776263443025,-2000.0,0.00010316,2]
[420542650,1776263443035,-587.31281038,0.00010326,2]
[420542653,1776263443044,-5635.21395842,0.00010328,2]
[420542655,1776263443054,-709.12769178,0.00010331,2]
[420542656,1776263443063,-175.73,0.000104,2]
[420542657,1776263443072,-168.3888056,0.00010489,2]
[420542658,1776263443082,-160.0,0.0001053,4]
[420542659,1776263443091,-2000.0,0.00010616,2]
[420542660,1776263443100,-2000.0,0.00010616,2]
[420542661,1776263443110,-1500.0,0.00010616,2]
[420542662,1776263443119,-572.40585756,0.00010618,2]
[420542663,1776263443333,-662.53951612,0.0001064,2]
[420542664,1776263443349,-587.31281038,0.00010651,2]
[420542665,1776263443363,-709.12769178,0.00010661,2]
[420542666,1776263443372,-224.25,0.00010685,2]
[420542667,1776263443382,-250.7989747,0.00010685,2]
[420542668,1776263443391,-354.30561241,0.00010738,2]
[420542669,1776263443401,-1152.0,0.0001076,2]
[420542670,1776263443415,-151.0,0.00010764,2]
[420542671,1776263443424,-181.08010149,0.00010764,2]
[420542672,1776263443435,-642.76037782,0.00010764,2]
[420542673,1776263443448,-599.60298507,0.00010764,2]
[420542674,1776263443457,-2398.4119403,0.00010764,2]
[420542675,1776263443466,-292.88,0.000108,2]
[420542676,1776263443475,-549.56517923,0.00010864,2]
[420542677,1776263443486,-2500.0,0.00010864,2]
[420542678,1776263443499,-2500.0,0.00010864,2]
[420542679,1776263443509,-2500.0,0.00010864,2]
[420542680,1776263443519,-2159.74317237,0.00010864,2]
[420542681,1776263443530,-572.40585756,0.00010927,7]
[420542682,1776263443541,-834.7861,0.00010958,2]
[420542683,1776263443551,-512.1646,0.00010958,2]
[420542684,1776263443560,-739.56638815,0.00010958,2]
[420542685,1776263443569,-512.1646,0.00010958,2]
[420542686,1776263443580,-500.0,0.00010958,2]
[420542687,1776263443590,-529.29199914,0.00010958,2]
[420542688,1776263443599,-500.0,0.00010958,2]
[420542689,1776263443608,-416.01259601,0.00010958,2]
[420542690,1776263443620,-500.0,0.00010958,2]
[420542691,1776263443630,-500.0,0.00010958,2]
[420542692,1776263443639,-512.14549658,0.00010958,2]
[420542693,1776263443649,-507.66573243,0.00010958,2]
[420542694,1776263443659,-510.32049362,0.00010958,2]
[420542695,1776263443670,-507.25690873,0.00010958,2]
[420542696,1776263443679,-513.3521708,0.00010958,2]
[420542697,1776263443688,-506.60977076,0.00010958,2]
[420542698,1776263443698,-509.50128032,0.00010958,2]
[420542699,1776263443710,-500.0,0.00010958,2]
[420542700,1776263443719,-533.54,0.00010958,2]
[420542701,1776263443729,-500.0,0.00010958,2]
[420542702,1776263443739,-500.0,0.00010958,2]
[420542703,1776263443749,-522.09775747,0.00010958,2]
[420542704,1776263443761,-576.9,0.00010958,2]
[420542705,1776263443771,-511.55069789,0.00010958,2]
[420542706,1776263443780,-1289.98,0.00010958,2]
[420542707,1776263443790,-500.0,0.00010958,2]
[420542708,1776263443801,-578.69175192,0.00010958,2]
[420542709,1776263443812,-539.31474711,0.00010958,2]
[420542710,1776263443823,-190.95902683,0.00010958,2]
[420542711,1776263443834,-1412.75,0.00010958,2]
[420542712,1776263443847,-500.0,0.00010958,2]
[420542713,1776263443856,-1540.37,0.00010958,2]
[420542714,1776263443867,-729.56,0.00010958,2]
[420542715,1776263443877,-500.0,0.00010958,2]
[420542716,1776263443890,-267.07364076,0.00010958,2]
[420542717,1776263443900,-500.0,0.00010958,2]
[420542718,1776263443910,-500.0,0.00010958,2]
[420542719,1776263443921,-500.0,0.00010958,2]
[420542720,1776263443932,-3172.34,0.00010958,2]
[420542721,1776263443942,-520.35072734,0.00010958,2]
[420542722,1776263443951,-500.0,0.00010958,2]
[420542723,1776263443961,-2515.23,0.00010958,2]
[420542724,1776263443976,-500.0,0.00010958,2]
[420542725,1776263443985,-538.63015195,0.00010958,2]
[420542726,1776263443995,-522.14507509,0.00010958,2]
[420542727,1776263444005,-1966.97,0.00010958,2]
[420542728,1776263444020,-624.71,0.00010958,2]
[420542729,1776263444031,-500.0,0.00010958,2]
[420542730,1776263444041,-511.51403377,0.00010958,2]
[420542731,1776263444051,-508.17391871,0.00010958,2]
[420542732,1776263444063,-639.56,0.00010958,2]
[420542733,1776263444073,-3564.19,0.00010958,2]
[420542734,1776263444084,-509.77849533,0.00010958,2]
[420542735,1776263444100,-510.00796303,0.00010958,2]
[420542736,1776263444112,-500.0,0.00010958,2]
[420542737,1776263444124,-500.0,0.00010958,2]
[420542738,1776263444135,-500.0,0.00010958,2]
[420542739,1776263444149,-2202.65,0.00010958,2]
[420542741,1776263444158,-644.76,0.00010958,2]
[420542742,1776263444170,-14225.47,0.00010958,2]
[420542743,1776263444180,-522.89071823,0.00010958,2]
[420542746,1776263444195,-1429.77,0.00010958,2]
[420542747,1776263444204,-500.0,0.00010958,2]
[420542748,1776263444217,-3841.63,0.00010958,2]
[420542749,1776263444227,-2341.97,0.00010958,2]
[420542750,1776263444241,-588.56,0.00010958,2]
[420542751,1776263444252,-2716.01,0.00010958,2]
[420542752,1776263444270,-533.57389828,0.00010958,2]
[420542753,1776263444284,-3232.39,0.00010958,2]
[420542754,1776263444293,-500.0,0.00010958,2]
[420542755,1776263444306,-500.0,0.00010958,2]
[420542756,1776263444318,-500.0,0.00010958,2]
[420542757,1776263444331,-500.0,0.00010958,2]
[420542758,1776263444340,-500.0,0.00010958,2]
[420542759,1776263444354,-514.79941422,0.00010958,2]
[420542760,1776263444367,-500.0,0.00010958,2]
[420542761,1776263444380,-512.63155127,0.00010958,2]
[420542762,1776263444390,-756.62,0.00010958,2]
[420542763,1776263444403,-167.8486487,0.00010958,2]
[420542764,1776263444420,-500.0,0.00010958,2]
[420542765,1776263444429,-500.0,0.00010958,2]
[420542766,1776263444443,-500.0,0.00010958,2]
[420542767,1776263444453,-500.0,0.00010958,2]
[420542768,1776263444467,-500.0,0.00010958,2]
[420542769,1776263444481,-157.19192968,0.00010958,2]
[420542770,1776263444492,-512.75,0.00010958,2]
[420542771,1776263444506,-500.0,0.00010958,2]
[420542772,1776263444520,-2506.81,0.00010958,2]
[420542773,1776263444532,-560.3,0.00010958,2]
[420542774,1776263444543,-500.0,0.00010958,2]
[420542775,1776263444558,-500.0,0.00010958,2]
[420542776,1776263444572,-500.0,0.00010958,2]
[420542777,1776263444587,-1546.15,0.00010958,2]
[420542778,1776263444602,-220.55201542,0.00010958,2]
[420542779,1776263444615,-911.89,0.00010958,2]
[420542780,1776263444628,-500.0,0.00010958,2]
[420542782,1776263444642,-537.54426901,0.00010958,2]
[420542784,1776263444652,-7766.94,0.00010958,2]
[420542786,1776263444668,-2496.09,0.00010958,2]
[420542787,1776263444678,-500.0,0.00010958,2]
[420542789,1776263444690,-500.0,0.00010958,2]
[420542790,1776263444701,-690.12,0.00010958,2]
[420542791,1776263444717,-2233.41,0.00010958,2]
[420542793,1776263444730,-26725.09,0.00010958,2]
[420542794,1776263444739,-500.0,0.00010958,2]
[420542795,1776263444750,-497.13191673,0.00010958,2]
[420542796,1776263444769,-1997.44,0.00010958,2]
[420542797,1776263444780,-500.0,0.00010958,2]
[420542798,1776263444794,-3601.26,0.00010958,2]
[420542799,1776263444812,-510.72557999,0.00010958,2]
[420542800,1776263444823,-500.0,0.00010958,2]
[420542801,1776263444834,-3021.11,0.00010958,2]
[420542802,1776263444850,-5610.92,0.00010958,2]
[420542803,1776263444861,-780.85,0.00010958,2]
[420542804,1776263444874,-506.06940922,0.00010958,2]
[420542805,1776263444886,-9430.67,0.00010958,2]
[420542806,1776263444900,-510.84,0.00010958,2]
[420542807,1776263444909,-6380.11,0.00010958,2]
[420542808,1776263444921,-511.82,0.00010958,2]
[420542809,1776263444935,-1423.18,0.00010958,2]
[420542810,1776263444947,-537.77655693,0.00010958,2]
[420542811,1776263444957,-500.0,0.00010958,2]
[420542812,1776263444969,-500.0,0.00010958,2]
[420542813,1776263444983,-3995.52,0.00010958,2]
[420542814,1776263444992,-525.0493871,0.00010958,2]
[420542815,1776263445002,-631.79222525,0.00010958,2]
[420542816,1776263445014,-500.0,0.00010958,2]
[420542817,1776263445027,-513.47930315,0.00010958,2]
[420542818,1776263445036,-500.0,0.00010958,2]
[420542819,1776263445046,-500.0,0.00010958,2]
[420542820,1776263445060,-2934.12,0.00010958,2]
[420542821,1776263445073,-512.11541859,0.00010958,2]
[420542822,1776263445082,-583.22522745,0.00010958,2]
[420542823,1776263445093,-15380.3736,0.00010959,2]
[420542824,1776263445104,-203.59833845,0.00010959,2]
[420542825,1776263445115,-151.0,0.00010959,2]
[420542826,1776263445125,-154.71105,0.00010959,2]
[420542827,1776263445137,-500.0,0.00010959,2]
[420542828,1776263445148,-500.0,0.00010959,2]
[420542829,1776263445159,-592.23395857,0.00010959,2]
[420542830,1776263445169,-500.0,0.00010959,2]
[420542831,1776263445178,-500.0,0.00010959,2]
[420542832,1776263445189,-500.0,0.00010959,2]
[420542833,1776263445199,-271.16,0.0001096,2]
[420542834,1776263445212,-151.0,0.0001096,2]
[420542835,1776263445221,-150.0,0.0001096,2]
[420542836,1776263445231,-150.0,0.0001096,2]
[420542837,1776263445241,-268.82,0.00010969,2]
[420542838,1776263445255,-587.31281038,0.00010977,7]
[420542839,1776263445265,-709.12769178,0.00010992,7]
[420542840,1776263445276,-163.28324545,0.00011,2]
[420542841,1776263445291,-300.0,0.00011,2]
[420542842,1776263445302,-151.0,0.00011,2]
[420542843,1776263445312,-151.0,0.00011,2]
[420542844,1776263445322,-151.0,0.00011,2]
[420542845,1776263445335,-6291.0,0.00011111,5]
[420542846,1776263445347,-160.0,0.00011164,5]
[420542847,1776263445357,-163.39497999,0.00011164,5]
[420542848,1776263445366,-160.0,0.00011164,3]
[420542849,1776263445379,-160.0,0.00011164,5]
[420542850,1776263445388,-2500.0,0.00011164,2]
[420542851,1776263445398,-2500.0,0.00011164,2]
[420542852,1776263445409,-176.1110448,0.00011193,19]
[420542853,1776263445422,-1000.0,0.00011193,2]
[420542854,1776263445431,-244.0,0.00011193,2]
[420542855,1776263445440,-512.1646,0.00011232,2]
[420542856,1776263445450,-1346.9507,0.00011232,2]
[420542857,1776263445461,-500.0,0.00011232,2]
[420542858,1776263445470,-500.0,0.00011232,2]
[420542859,1776263445480,-500.0,0.00011232,2]
[420542860,1776263445489,-500.0,0.00011232,2]
[420542861,1776263445502,-533.54,0.00011232,2]
[420542862,1776263445512,-500.0,0.00011232,2]
[420542863,1776263445522,-500.0,0.00011232,2]
[420542864,1776263445531,-576.9,0.00011232,2]
[420542865,1776263445542,-1289.98,0.00011232,2]
[420542866,1776263445551,-500.0,0.00011232,2]
[420542867,1776263445560,-1412.75,0.00011232,2]
[420542868,1776263445570,-500.0,0.00011232,2]
[420542869,1776263445579,-1540.37,0.00011232,2]
[420542870,1776263445592,-729.56,0.00011232,2]
[420542871,1776263445601,-500.0,0.00011232,2]
[420542872,1776263445611,-500.0,0.00011232,2]
[420542873,1776263445620,-500.0,0.00011232,2]
[420542874,1776263445634,-500.0,0.00011232,2]
[420542875,1776263445643,-3172.34,0.00011232,2]
[420542876,1776263445656,-500.0,0.00011232,2]
[420542877,1776263445665,-2515.23,0.00011232,2]
[420542878,1776263445678,-1966.97,0.00011232,2]
[420542879,1776263445691,-624.71,0.00011232,2]
[420542880,1776263445701,-500.0,0.00011232,2]
[420542881,1776263445710,-639.56,0.00011232,2]
[420542882,1776263445723,-3564.19,0.00011232,2]
[420542883,1776263445734,-213.80053214,0.00011232,2]
[420542884,1776263445744,-500.0,0.00011232,2]
[420542885,1776263445754,-643.12526643,0.00011232,2]
[420542886,1776263445766,-2202.65,0.00011232,2]
[420542887,1776263445779,-644.76,0.00011232,2]
[420542888,1776263445789,-14225.47,0.00011232,2]
[420542889,1776263445798,-1429.77,0.00011232,2]
[420542890,1776263445811,-500.0,0.00011232,2]
[420542891,1776263445823,-3841.63,0.00011232,2]
[420542892,1776263445833,-2341.97,0.00011232,2]
[420542893,1776263445843,-588.56,0.00011232,2]
[420542894,1776263445856,-2716.01,0.00011232,2]
[420542895,1776263445868,-3232.39,0.00011232,2]
[420542896,1776263445878,-500.0,0.00011232,2]
[420542897,1776263445888,-500.0,0.00011232,2]
[420542898,1776263445898,-500.0,0.00011232,2]
[420542899,1776263445911,-500.0,0.00011232,2]
[420542900,1776263445921,-500.0,0.00011232,2]
[420542901,1776263445931,-500.0,0.00011232,2]
[420542902,1776263445941,-756.62,0.00011232,2]
[420542903,1776263445952,-500.0,0.00011232,2]
[420542904,1776263445961,-500.0,0.00011232,2]
[420542905,1776263445971,-500.0,0.00011232,2]
[420542906,1776263445980,-500.0,0.00011232,2]
[420542907,1776263445990,-500.0,0.00011232,2]
[420542908,1776263446002,-512.75,0.00011232,2]
[420542909,1776263446012,-500.0,0.00011232,2]
[420542910,1776263446022,-2506.81,0.00011232,2]
[420542911,1776263446031,-560.3,0.00011232,2]
[420542912,1776263446040,-500.0,0.00011232,2]
[420542913,1776263446049,-500.0,0.00011232,2]
[420542914,1776263446059,-500.0,0.00011232,2]
[420542916,1776263446068,-1546.15,0.00011232,2]
[420542917,1776263446078,-911.89,0.00011232,2]
[420542919,1776263446087,-173.07523236,0.00011232,2]
[420542920,1776263446096,-7766.94,0.00011232,2]
[420542921,1776263446105,-2496.09,0.00011232,2]
[420542922,1776263446115,-500.0,0.00011232,2]
[420542923,1776263446124,-536.37285706,0.00011232,2]
[420542924,1776263446133,-690.12,0.00011232,2]
[420542925,1776263446143,-2233.41,0.00011232,2]
[420542926,1776263446152,-26725.09,0.00011232,2]
[420542927,1776263446162,-293.86000283,0.00011232,2]
[420542928,1776263446171,-1997.44,0.00011232,2]
[420542929,1776263446180,-250.69542086,0.00011232,2]
[420542930,1776263446190,-3601.26,0.00011232,2]
[420542931,1776263446201,-500.0,0.00011232,2]
[420542932,1776263446210,-3021.11,0.00011232,2]
[420542933,1776263446219,-5610.92,0.00011232,2]
[420542934,1776263446229,-780.85,0.00011232,2]
[420542935,1776263446238,-9430.67,0.00011232,2]
[420542936,1776263446247,-510.84,0.00011232,2]
[420542937,1776263446257,-6380.11,0.00011232,2]
[420542938,1776263446266,-511.82,0.00011232,2]
[420542939,1776263446276,-1423.18,0.00011232,2]
[420542940,1776263446285,-212.5287574,0.00011232,2]
[420542941,1776263446294,-254.13044058,0.00011232,2]
[420542942,1776263446305,-3995.52,0.00011232,2]
[420542943,1776263446314,-500.0,0.00011232,2]
[420542944,1776263446324,-500.0,0.00011232,2]
[420542945,1776263446333,-2934.12,0.00011232,2]
[420542946,1776263446342,-572.40585756,0.00011237,7]
[420542947,1776263446351,-662.53951612,0.00011281,7]
[420542948,1776263446361,-587.31281038,0.00011302,7]
[420542949,1776263446371,-151.0,0.00011312,2]
[420542950,1776263446380,-187.78006525,0.00011312,2]
[420542951,1776263446389,-621.78829552,0.00011312,2]
[420542952,1776263446398,-2487.15318209,0.00011312,2]
[420542953,1776263446407,-709.12769178,0.00011323,7]
[420542954,1776263446417,-3000.0,0.00011412,2]
[420542955,1776263446427,-3000.0,0.00011412,2]
[420542956,1776263446436,-2683.6137343,0.00011412,2]
[420542958,1776263446444,-176.1110448,0.00011427,21]
[420542960,1776263446453,-168.64059767,0.00011475,7]
[420542961,1776263446465,-354.30561241,0.00011475,7]
[420542963,1776263446474,-179.19829369,0.00011501,2]
[420542966,1776263446484,-1859.1153,0.00011506,2]
[420542967,1776263446494,-500.0,0.00011506,2]
[420542969,1776263446503,-500.0,0.00011506,2]
[420542971,1776263446513,-500.0,0.00011506,2]
[420542972,1776263446522,-500.0,0.00011506,2]
[420542973,1776263446531,-533.54,0.00011506,2]
[420542974,1776263446541,-427.68452969,0.00011506,2]
[420542975,1776263446550,-500.0,0.00011506,2]
[420542977,1776263446560,-576.9,0.00011506,2]
[420542978,1776263446569,-1289.98,0.00011506,2]
[420542979,1776263446579,-500.0,0.00011506,2]
[420542980,1776263446588,-1412.75,0.00011506,2]
[420542981,1776263446597,-500.0,0.00011506,2]
[420542982,1776263446608,-1540.37,0.00011506,2]
[420542983,1776263446618,-729.56,0.00011506,2]
[420542984,1776263446627,-500.0,0.00011506,2]
[420542985,1776263446637,-500.0,0.00011506,2]
[420542986,1776263446778,-500.0,0.00011506,2]
[420542987,1776263446794,-500.0,0.00011506,2]
[420542988,1776263446803,-3172.34,0.00011506,2]
[420542989,1776263446813,-500.0,0.00011506,2]
[420542990,1776263446822,-2515.23,0.00011506,2]
[420542991,1776263446832,-1966.97,0.00011506,2]
[420542992,1776263446841,-624.71,0.00011506,2]
[420542993,1776263446851,-500.0,0.00011506,2]
[420542994,1776263446859,-639.56,0.00011506,2]
[420542995,1776263446869,-3564.19,0.00011506,2]
[420542996,1776263446878,-500.0,0.00011506,2]
[420542998,1776263446887,-2202.65,0.00011506,2]
[420542999,1776263446896,-644.76,0.00011506,2]
[420543000,1776263446905,-14225.47,0.00011506,2]
[420543001,1776263446914,-1429.77,0.00011506,2]
[420543002,1776263446923,-500.0,0.00011506,2]
[420543003,1776263446932,-3841.63,0.00011506,2]
[420543004,1776263446941,-2341.97,0.00011506,2]
[420543005,1776263446951,-588.56,0.00011506,2]
[420543006,1776263446960,-2716.01,0.00011506,2]
[420543007,1776263446969,-3232.39,0.00011506,2]
[420543008,1776263446978,-500.0,0.00011506,2]
[420543009,1776263446987,-500.0,0.00011506,2]
[420543010,1776263446997,-500.0,0.00011506,2]
[420543011,1776263447007,-500.0,0.00011506,2]
[420543012,1776263447016,-500.0,0.00011506,2]
[420543013,1776263447026,-500.0,0.00011506,2]
[420543014,1776263447036,-756.62,0.00011506,2]
[420543015,1776263447045,-500.0,0.00011506,2]
[420543016,1776263447055,-500.0,0.00011506,2]
[420543017,1776263447064,-500.0,0.00011506,2]
[420543018,1776263447073,-500.0,0.00011506,2]
[420543019,1776263447082,-500.0,0.00011506,2]
[420543020,1776263447091,-512.75,0.00011506,2]
[420543021,1776263447101,-500.0,0.00011506,2]
[420543022,1776263447110,-2506.81,0.00011506,2]
[420543023,1776263447119,-560.3,0.00011506,2]
[420543024,1776263447128,-500.0,0.00011506,2]
[420543025,1776263447137,-500.0,0.00011506,2]
[420543026,1776263447146,-164.14517713,0.00011506,2]
[420543027,1776263447157,-1546.15,0.00011506,2]
[420543028,1776263447166,-911.89,0.00011506,2]
[420543029,1776263447177,-7766.94,0.00011506,2]
[420543030,1776263447187,-2496.09,0.00011506,2]
[420543031,1776263447196,-300.00324555,0.00011506,2]
[420543032,1776263447206,-690.12,0.00011506,2]
[420543033,1776263447215,-2233.41,0.00011506,2]
[420543034,1776263447225,-26725.09,0.00011506,2]
[420543035,1776263447235,-1997.44,0.00011506,2]
[420543036,1776263447244,-3601.26,0.00011506,2]
[420543037,1776263447253,-500.0,0.00011506,2]
[420543038,1776263447263,-3021.11,0.00011506,2]
[420543039,1776263447272,-5610.92,0.00011506,2]
[420543040,1776263447281,-780.85,0.00011506,2]
[420543041,1776263447291,-9430.67,0.00011506,2]
[420543042,1776263447300,-510.84,0.00011506,2]
[420543043,1776263447310,-6380.11,0.00011506,2]
[420543044,1776263447320,-511.82,0.00011506,2]
[420543045,1776263447330,-1423.18,0.00011506,2]
[420543046,1776263447340,-3995.52,0.00011506,2]
[420543047,1776263447349,-500.0,0.00011506,2]
[420543048,1776263447358,-291.05759201,0.00011506,2]
[420543049,1776263447369,-2934.12,0.00011506,2]
[420543050,1776263447379,-572.40585756,0.00011546,7]
[420543051,1776263447389,-166.21,0.00011571,2]
[420543052,1776263447400,-587.31281038,0.00011628,7]
[420543053,1776263447413,-709.12769178,0.00011653,7]
[420543054,1776263447422,-176.1110448,0.00011662,23]
[420543055,1776263447433,-3000.0,0.00011712,2]
[420543056,1776263447443,-3000.0,0.00011712,2]
[420543057,1776263447455,-1859.1153,0.0001178,2]
[420543058,1776263447464,-504.39991338,0.0001178,2]
[420543059,1776263447477,-419.71869656,0.0001178,2]
[420543060,1776263447490,-520.26666167,0.0001178,2]
[420543061,1776263447500,-500.0,0.0001178,2]
[420543062,1776263447511,-533.54,0.0001178,2]
[420543063,1776263447520,-161.43728406,0.0001178,2]
[420543064,1776263447531,-576.9,0.0001178,2]
[420543065,1776263447541,-1289.98,0.0001178,2]
[420543066,1776263447551,-337.52,0.0001178,2]
[420543067,1776263447563,-1412.75,0.0001178,2]
[420543068,1776263447575,-500.0,0.0001178,2]
[420543069,1776263447586,-1540.37,0.0001178,2]
[420543070,1776263447597,-729.56,0.0001178,2]
[420543071,1776263447607,-500.0,0.0001178,2]
[420543072,1776263447617,-500.0,0.0001178,2]
[420543073,1776263447630,-500.0,0.0001178,2]
[420543074,1776263447643,-500.0,0.0001178,2]